bitfinex/quotes_ETHUSD_20241022
["timestamp","ask_amount","ask_price","bid_price","bid_amount"]
[1729557528371,19.69436,2631.3,2630.8,3.80103]
[1729557528578,19.69436,2631.2,2630.9,3.80098]
[1729557528779,19.69436,2631.1,2630.9,3.80098]
[1729557528992,19.69436,2631.3,2630.9,4.561193]
[1729557529195,19.69436,2631.3,2631.0,0.07600722]
[1729557529511,3.79974,2631.8,2630.5,1.923045]
[1729557529512,19.69436,2631.7,2631.2,3.80047]
[1729557529860,19.69436,2631.7,2631.4,7.60031]
[1729557530071,0.01877696,2632.1,2631.6,3.79996]
[1729557530297,0.01877696,2632.1,2630.8,4.3435673]
[1729557530298,19.82,2632.0,2631.4,3.80018]
[1729557530504,27.41894,2632.0,2631.4,3.80018]
[1729557530882,19.82,2632.0,2631.5,3.80009]
[1729557531194,19.82,2632.1,2631.6,7.59992]
[1729557531405,19.82,2632.1,2631.8,3.79968]
[1729557531613,19.82,2632.1,2631.9,3.79951]
[1729557531901,19.82,2632.3,2632.0,3.79929]
[1729557532471,19.82,2632.5,2631.8,3.79958]
[1729557532673,19.82,2632.4,2631.8,0.81494]
[1729557532879,19.82,2632.3,2631.7,3.79982]
[1729557533185,19.82,2632.3,2631.6,0.55]
[1729557533367,23.61905,2632.3,2631.5,3.80008]
[1729557533981,19.82,2632.3,2631.9,3.79942]
[1729557534199,0.1536,2633.1,2631.9,4.614337]
[1729557534200,19.82,2632.5,2631.9,4.614337]
[1729557534511,19.82,2632.4,2631.9,4.614337]
[1729557534734,19.82,2632.6,2632.0,3.79937]
[1729557534880,19.82,2632.6,2631.9,4.614337]
[1729557535081,23.6187,2632.5,2631.7,3.7998]
[1729557535381,19.82,2632.5,2631.9,3.79947]
[1729557535991,3.79878,2632.5,2631.7,3.79972]
[1729557536205,3.79878,2632.5,2631.8,3.79966]
[1729557536516,19.82,2632.6,2631.8,3.79958]
[1729557536728,19.82,2632.6,2631.8,4.333708]
[1729557537013,19.82,2632.6,2631.6,5.34163]
[1729557537014,3.799,2632.3,2631.6,5.34163]
[1729557537198,3.79875,2632.5,2631.7,3.79981]
[1729557538022,3.79927,2632.1,2631.6,1.5417]
[1729557538222,3.95258,2632.3,2631.6,3.79989]
[1729557538818,3.7987,2632.5,2631.7,3.79978]
[1729557539015,3.7987,2632.5,2631.6,4.559897]
[1729557539320,24.1535673,2632.6,2631.2,1.632]
[1729557539321,3.7994,2632.0,2631.2,1.632]
[1729557539504,3.80006,2631.6,2630.8,3.80098]
[1729557539674,19.82,2631.5,2630.8,3.80098]
[1729557540118,19.82,2631.5,2631.0,3.80082]
[1729557540479,19.82,2631.5,2631.2,3.8005]
[1729557540975,19.82,2631.5,2631.0,3.80074]
[1729557541404,3.80066,2631.2,2630.6,1.5231]
[1729557541604,3.80066,2631.2,2630.1,3.80206]
[1729557541605,3.80086,2631.0,2630.3,3.80176]
[1729557541901,23.62099,2630.9,2630.3,0.917662]
[1729557542087,19.82,2630.8,2630.2,1.5728]
[1729557542332,3.80128,2630.7,2629.7,1.5728]
[1729557542541,19.82,2630.6,2629.7,1.5728]
[1729557542717,19.82,2630.6,2630.2,3.80195]
[1729557542919,19.82,2630.7,2630.3,1.6181]
[1729557543229,19.82,2631.2,2630.4,0.922194]
[1729557543730,19.82,2631.2,2630.4,3.80157]
[1729557543932,19.82,2631.2,2630.6,3.80141]
[1729557544103,19.82,2631.2,2630.8,0.55]
[1729557544289,4.4871673,2632.0,2630.8,0.55]
[1729557544290,19.82,2631.6,2631.0,0.55]
[1729557544489,19.82,2631.9,2631.0,4.35079]
[1729557544729,19.82,2631.9,2631.1,0.596069]
[1729557544930,19.82,2631.9,2631.0,3.55]
[1729557545093,19.82,2631.9,2631.0,7.35081]
[1729557545906,19.82,2631.9,2631.0,11.15154]
[1729557546110,19.82,2631.9,2631.0,7.35073]
[1729557546322,4.3335673,2631.7,2630.9,1.6099]
[1729557546488,3.80024,2631.5,2630.9,1.6099]
[1729557546930,4.3335673,2631.4,2630.6,3.0]
[1729557547113,4.3335673,2631.4,2630.4,1.5968]
[1729557547114,19.82,2631.3,2630.4,1.5968]
[1729557547429,19.82,2631.3,2630.0,1.5968]
[1729557547430,3.80099,2630.9,2630.0,1.5968]
[1729557547730,19.82,2630.8,2630.0,1.5968]
[1729557547889,19.82,2630.8,2630.0,5.39907]
[1729557548092,19.82,2630.8,2630.0,1.5968]
[1729557548691,19.82,2630.8,2630.0,5.39898]
[1729557548910,19.82,2630.8,2630.1,0.92013]
[1729557549094,19.82,2630.8,2630.1,4.72225]
[1729557549297,19.82,2630.8,2630.3,3.8018]
[1729557549706,19.82,2630.8,2630.2,0.55]
[1729557549906,19.82,2630.8,2630.2,7.35198]
[1729557550121,19.82,2630.8,2630.4,0.55]
[1729557550435,19.82,2630.8,2630.3,1.207423]
[1729557550436,19.82,2630.8,2630.6,4.35132]
[1729557550644,19.82,2630.8,2630.7,7.35126]
[1729557550808,5.1799604,2632.0,2630.7,7.35126]
[1729557550809,19.82,2631.4,2631.1,3.8006]
[1729557550994,19.82,2631.4,2631.3,3.80036]
[1729557551196,19.82,2631.4,2631.3,4.7881018]
[1729557551434,19.82,2632.2,2631.9,3.79952]
[1729557551620,0.1536,2632.5,2631.8,0.55]
[1729557551621,19.82,2632.4,2631.8,0.55]
[1729557552009,19.82,2632.4,2631.8,4.34965]
[1729557552434,3.8005,2631.3,2630.1,2.50763]
[1729557552617,19.82,2631.2,2630.4,3.80157]
[1729557553166,3.80085,2631.0,2630.2,0.251763]
[1729557553522,23.62057,2631.2,2630.4,3.80167]
[1729557553718,19.82,2631.2,2630.4,3.8017]
[1729557554026,3.80069,2631.1,2630.3,3.8018]
[1729557554248,23.62067,2631.2,2630.3,3.8018]
[1729557554249,27.9541673,2631.2,2630.4,3.8017]
[1729557554453,19.82,2631.2,2630.5,3.80142]
[1729557554758,19.82,2631.2,2630.5,7.60286]
[1729557554921,19.82,2631.2,2630.5,3.80142]
[1729557555570,19.82,2631.2,2630.3,4.3658863]
[1729557555750,23.62068,2631.2,2630.5,3.80155]
[1729557556055,23.62068,2631.2,2630.4,3.80168]
[1729557556056,19.82,2631.2,2630.4,3.80168]
[1729557556261,3.80074,2631.1,2630.4,3.80168]
[1729557556422,19.82,2631.2,2630.5,4.00143]
[1729557556769,3.8013,2630.7,2630.5,0.2]
[1729557557073,19.82,2630.6,2630.5,0.2]
[1729557557227,23.62141,2630.6,2630.5,0.2]
[1729557557749,27.9549773,2630.6,2630.5,0.2]
[1729557559030,28.1085773,2630.6,2630.5,0.2]
[1729557559380,3.803,2629.5,2628.8,5.35832]
[1729557559557,19.82,2629.4,2628.8,2.470634]
[1729557559731,19.82,2629.4,2628.9,3.80373]
[1729557560124,19.82,2629.4,2629.3,3.80329]
[1729557560742,19.82,2629.4,2629.1,3.80348]
[1729557561141,19.82,2629.4,2629.1,3.0]
[1729557561341,19.82,2629.4,2629.0,3.0]
[1729557561862,19.82,2629.4,2629.1,3.80358]
[1729557562038,19.82,2629.4,2629.0,3.0]
[1729557562240,19.82,2629.4,2628.9,3.8038]
[1729557562453,19.82,2629.4,2628.9,3.80377]
[1729557562972,19.82,2629.4,2629.0,3.80372]
[1729557563170,19.82,2629.4,2629.0,3.80371]
[1729557563380,19.82,2629.4,2629.1,3.87956284]
[1729557563537,19.82,2629.4,2629.3,3.80329]
[1729557563946,19.82,2629.4,2629.2,3.8033]
[1729557564497,19.82,2629.8,2629.2,3.8033]
[1729557564649,19.82,2629.8,2629.4,3.80302]
[1729557564855,19.82,2630.1,2629.4,3.80302]
[1729557565046,3.80339,2629.3,2628.3,1.5288]
[1729557565272,19.82,2629.2,2627.9,1.5288]
[1729557565478,19.82,2629.2,2628.3,3.80459]
[1729557565873,19.82,2629.2,2628.0,3.80511]
[1729557566083,19.82,2629.2,2627.9,1.5288]
[1729557566298,19.82,2629.2,2628.4,3.80449]
[1729557566457,19.82,2629.2,2628.5,3.80444]
[1729557566651,19.82,2629.2,2628.4,3.80449]
[1729557567308,19.82,2629.2,2628.7,3.80413]
[1729557567658,19.82,2629.2,2628.6,3.80418]
[1729557567892,19.82,2629.2,2628.7,3.80413]
[1729557568202,19.82,2629.2,2628.4,3.80458]
[1729557568500,19.82,2629.2,2628.5,3.80444]
[1729557569268,19.82,2629.2,2628.9,3.80386]
[1729557569458,19.82,2629.5,2628.9,3.80376]
[1729557569657,19.82,2629.5,2629.0,3.80363]
[1729557569896,19.82,2629.5,2628.9,3.80376]
[1729557570196,19.82,2629.5,2629.1,3.80349]
[1729557570693,19.82,2629.5,2629.2,3.80343]
[1729557571202,19.82,2629.5,2629.3,3.80328]
[1729557571581,19.82,2629.5,2629.1,3.80349]
[1729557571992,19.82,2629.5,2628.9,3.80376]
[1729557572164,19.82,2629.5,2628.8,3.8039]
[1729557572769,19.82,2629.5,2628.9,3.80382]
[1729557573001,19.82,2629.5,2628.7,3.80412]
[1729557573295,23.62308,2629.5,2628.8,3.80399]
[1729557573792,3.80318,2629.4,2628.8,3.80399]
[1729557574099,23.62338,2629.3,2628.5,3.80432]
[1729557574595,19.82,2629.3,2628.3,4.5068]
[1729557574795,19.82,2629.3,2628.6,3.80422]
[1729557574796,3.80338,2629.3,2628.6,3.80422]
[1729557575303,24.1535673,2629.4,2628.6,3.80422]
[1729557575504,27.9568473,2629.4,2628.6,3.80422]
[1729557575795,3.80346,2629.2,2628.6,3.80422]
[1729557575994,24.1535673,2629.4,2628.7,3.80405]
[1729557576399,27.9567373,2629.4,2628.7,3.80405]
[1729557576965,3.8033,2629.3,2628.6,7.60843]
[1729557577167,24.1535673,2629.4,2628.7,3.80407]
[1729557577378,27.9567173,2629.4,2628.7,3.80407]
[1729557577574,24.1535673,2629.4,2628.8,3.80401]
[1729557578010,19.82,2629.4,2628.8,3.80401]
[1729557578398,19.82,2629.4,2628.6,3.80427]
[1729557578562,19.82,2629.4,2628.8,3.80398]
[1729557580106,19.82,2629.4,2628.7,3.80414]
[1729557580283,19.82,2629.4,2628.8,3.80398]
[1729557581371,23.62315,2629.4,2628.8,3.80398]
[1729557581982,23.62315,2629.4,2628.6,3.80419]
[1729557582571,23.62315,2629.4,2628.8,3.804]
[1729557583317,3.80344,2629.2,2628.5,3.0]
[1729557583520,3.80381,2629.0,2628.4,3.80456]
[1729557583805,3.80416,2628.7,2628.1,3.80493]
[1729557584011,19.82,2628.6,2628.0,3.8051]
[1729557584308,19.82,2628.6,2627.5,1.5599]
[1729557584309,7.53692616,2628.5,2627.8,3.80392666]
[1729557584810,7.53692616,2628.5,2627.9,3.80529]
[1729557585668,3.95829,2628.4,2627.7,3.80551]
[1729557586016,19.82,2628.3,2627.7,3.80549]
[1729557586239,19.82,2628.3,2627.8,3.80545]
[1729557586377,19.82,2628.3,2627.7,0.07609286]
[1729557586580,19.82,2628.3,2627.6,0.0761033]
[1729557586876,19.82,2628.3,2628.2,3.80488]
[1729557587688,19.82,2628.3,2628.0,3.80506]
[1729557587892,19.82,2628.3,2627.9,3.80529]
[1729557588282,19.82,2628.3,2628.1,3.80501]
[1729557588790,19.82,2628.3,2628.2,3.80488]
[1729557588981,19.82,2628.7,2628.4,3.80455]
[1729557589379,19.82,2628.7,2628.6,3.8043]
[1729557590525,19.82,2629.2,2628.9,3.80377]
[1729557590733,19.82,2629.2,2628.5,3.80444]
[1729557590734,19.82,2629.2,2629.1,3.80358]
[1729557592020,19.82,2629.2,2628.8,3.80395]
[1729557592317,3.80382,2629.0,2628.2,3.80485]
[1729557592529,19.82,2628.9,2628.4,3.80451]
[1729557592882,19.82,2628.9,2628.4,4.565446]
[1729557593082,19.82,2628.9,2628.4,4.565456]
[1729557593319,19.82,2628.9,2628.5,3.80443]
[1729557593517,19.82,2628.9,2628.6,3.80429]
[1729557593678,19.82,2628.9,2628.7,3.80415]
[1729557594079,19.82,2628.9,2628.7,3.80416]
[1729557594283,19.82,2628.9,2628.8,3.80401]
[1729557594591,19.82,2629.4,2628.8,3.80389]
[1729557594803,23.62316,2629.4,2628.6,3.80421]
[1729557595324,3.80331,2629.3,2628.6,7.60843]
[1729557595499,23.62316,2629.4,2628.7,3.80404]
[1729557595688,27.42644,2629.4,2628.7,3.8766379]
[1729557595884,23.62316,2629.4,2628.7,3.80404]
[1729557596117,27.42641,2629.4,2628.7,3.8766379]
[1729557596417,23.62316,2629.4,2628.8,3.80388]
[1729557596604,23.62316,2629.4,2628.9,3.80384]
[1729557596921,23.62316,2629.4,2628.8,3.80388]
[1729557597930,19.82,2629.4,2628.8,3.80399]
[1729557598521,23.62318,2629.4,2628.7,3.80416]
[1729557598825,3.80344,2629.2,2628.6,3.80421]
[1729557600025,19.82,2629.1,2628.6,3.80421]
[1729557600539,19.82,2629.1,2628.4,3.80451]
[1729557600687,23.62368,2629.1,2628.5,3.80436]
[1729557601030,3.80397,2628.9,2628.2,7.60957]
[1729557601239,19.82,2628.8,2628.2,3.80477]
[1729557601442,19.82,2628.8,2628.0,3.80511]
[1729557601747,3.80441,2628.6,2628.0,3.80511]
[1729557601913,3.80441,2628.6,2628.1,3.80501]
[1729557602246,3.8041,2628.8,2628.2,3.80484]
[1729557602461,23.6239,2628.9,2628.3,3.80465]
[1729557602656,19.82,2628.9,2628.2,3.80478]
[1729557602856,19.82,2628.9,2628.4,3.80445]
[1729557603343,19.82,2628.9,2628.5,3.8044]
[1729557604006,19.82,2628.9,2628.7,3.80412]
[1729557604213,19.82,2629.3,2628.6,4.3543]
[1729557604429,19.82,2629.4,2629.3,3.80329]
[1729557604625,19.82,2630.0,2629.6,3.80285]
[1729557604902,19.82,2630.1,2629.6,3.80285]
[1729557605303,19.82,2630.1,2629.4,3.80308]
[1729557605627,19.82,2630.1,2629.0,3.80364]
[1729557605828,3.80266,2629.8,2629.2,3.80334]
[1729557606143,3.8028,2629.7,2629.0,3.80359]
[1729557606370,0.1536,2629.4,2628.6,8.91943]
[1729557606513,19.82,2629.3,2628.6,0.891943]
[1729557606724,27.96650819,2629.3,2628.5,3.80443]
[1729557606941,3.80368,2629.1,2628.4,3.80452]
[1729557607248,3.80368,2629.1,2628.2,5.35643]
[1729557607249,3.8041,2628.8,2628.2,5.35643]
[1729557607538,19.9736,2628.7,2628.1,3.80492]
[1729557607750,19.9736,2628.7,2628.2,3.80478]
[1729557608037,19.9736,2628.7,2628.1,3.80492]
[1729557608609,19.9736,2628.7,2628.1,7.60985]
[1729557608813,19.9736,2628.7,2628.0,3.80513]
[1729557608814,3.8043,2628.6,2628.0,3.80513]
[1729557609035,3.80456,2628.5,2627.8,3.80536]
[1729557609243,3.80456,2628.5,2627.7,3.80553]
[1729557609244,3.80456,2628.5,2627.9,3.80531]
[1729557609552,0.1536,2628.3,2627.7,3.8055]
[1729557609700,3.95836,2628.3,2627.5,3.80579]
[1729557609904,3.80504,2628.1,2627.5,3.80579]
[1729557610101,3.80504,2628.1,2627.5,7.61159]
[1729557610305,3.80504,2628.1,2627.5,3.80579]
[1729557610553,3.80504,2628.1,2627.5,7.6116]
[1729557610851,3.80504,2628.1,2627.6,3.80574]
[1729557611342,3.9593,2627.7,2626.5,5.31232]
[1729557611557,19.82,2627.6,2627.0,3.80655]
[1729557611705,23.62588,2627.6,2627.0,3.80655]
[1729557611905,23.62588,2627.6,2627.1,3.80642]
[1729557611906,19.82,2627.6,2627.1,3.80642]
[1729557612346,19.82,2627.6,2626.7,3.80695]
[1729557612508,19.82,2627.6,2627.2,7.61244]
[1729557612706,19.82,2627.6,2627.4,3.80594]
[1729557613345,19.82,2627.6,2627.5,4.35589]
[1729557613644,3.80454,2628.5,2627.5,4.35589]
[1729557613645,19.82,2628.4,2628.3,3.80474]
[1729557613855,19.82,2628.4,2628.2,3.80488]
[1729557614059,19.82,2628.4,2628.2,3.80479]
[1729557614357,19.82,2628.4,2628.2,3.80488]
[1729557615128,19.82,2628.4,2628.3,3.80474]
[1729557615353,19.82,2628.8,2628.4,3.80456]
[1729557615529,19.82,2628.8,2628.2,3.80488]
[1729557615731,19.82,2628.8,2628.5,3.80442]
[1729557616361,19.82,2628.8,2628.7,3.80416]
[1729557616583,19.82,2628.8,2628.5,3.80442]
[1729557617414,19.82,2628.8,2628.3,3.8047]
[1729557617618,19.82,2628.8,2628.1,3.80492]
[1729557617619,23.62404,2628.8,2628.1,3.80492]
[1729557618057,19.82,2628.8,2628.3,3.80472]
[1729557618657,19.82,2628.8,2628.4,3.80449]
[1729557619055,19.82,2628.8,2628.5,3.80435]
[1729557619234,19.82,2628.8,2628.6,3.80419]
[1729557619928,19.82,2628.8,2628.6,3.8042]
[1729557620367,3.95694,2629.3,2627.9,4.641]
[1729557620368,19.82,2629.2,2628.8,3.80392]
[1729557620767,19.82,2629.2,2629.0,3.80372]
[1729557621267,19.82,2629.2,2629.0,7.60734]
[1729557621420,19.82,2629.2,2629.1,3.80358]
[1729557621623,19.82,2629.2,2629.0,3.80362]
[1729557621822,19.81349417,2629.2,2628.8,7.60786]
[1729557622059,19.81349417,2629.2,2628.8,0.918746]
[1729557622271,19.81349417,2629.2,2629.0,3.80361]
[1729557623061,19.81349417,2629.2,2628.8,3.80394]
[1729557623562,23.61716417,2629.1,2628.3,3.80466]
[1729557623749,19.96709417,2629.0,2627.9,3.80518]
[1729557623964,3.80455,2628.5,2627.7,9.24578]
[1729557624182,23.61817417,2628.4,2627.6,3.80568]
[1729557624487,19.96709417,2628.3,2627.3,3.80612]
[1729557624786,3.80542,2627.9,2627.1,3.80636]
[1729557624964,3.80579,2627.6,2626.9,3.80666]
[1729557625169,19.81349417,2627.5,2626.9,3.80666]
[1729557625631,19.81349417,2627.5,2627.1,3.80646]
[1729557626392,19.81349417,2627.5,2626.5,3.80728]
[1729557626393,23.61955417,2627.4,2626.7,3.80699]
[1729557626775,0.1536,2627.3,2626.7,3.80699]
[1729557627076,0.1536,2627.3,2626.5,3.80731]
[1729557627077,3.80633,2627.2,2626.5,3.80731]
[1729557627282,3.80633,2627.2,2626.6,3.80715]
[1729557627485,0.1536,2627.3,2626.7,3.80703]
[1729557627652,0.1536,2627.3,2626.7,3.80696]
[1729557627854,0.1536,2627.3,2626.9,3.80672]
[1729557628160,0.1536,2627.3,2626.7,3.80696]
[1729557628680,19.81349417,2627.2,2626.8,3.80687]
[1729557628889,19.81349417,2627.1,2626.9,3.80675]
[1729557629037,0.1536,2627.3,2626.9,3.80675]
[1729557629038,19.81349417,2627.0,2626.9,3.80675]
[1729557630388,19.81349417,2627.0,2626.8,3.80691]
[1729557630537,19.81349417,2626.9,2626.8,3.80691]
[1729557632296,19.81349417,2626.9,2626.8,3.85871218]
[1729557633305,19.81349417,2626.9,2626.8,7.6252774]
[1729557633659,19.81349417,2626.9,2626.8,0.05180218]
[1729557633880,19.81349417,2626.9,2626.8,3.80691]
[1729557634084,19.81349417,2626.9,2626.8,0.05349197]
[1729557634266,19.81349417,2626.9,2626.8,3.80691]
[1729557634481,19.81349417,2626.9,2626.8,3.86040197]
[1729557635279,19.81349417,2626.9,2626.8,4.62713617]
[1729557636171,19.81349417,2627.6,2626.8,5.34252617]
[1729557636370,1.03024188,2627.9,2627.4,3.8059]
[1729557636371,19.81349417,2627.5,2627.4,3.8059]
[1729557636777,19.81349417,2627.5,2627.4,3.85945606]
[1729557637007,19.81349417,2627.5,2627.4,3.93556827]
[1729557637166,19.81349417,2628.0,2627.6,3.80566]
[1729557637612,19.81349417,2628.0,2627.8,3.80544]
[1729557638204,19.81349417,2628.0,2627.9,0.05310746]
[1729557638571,19.81349417,2628.0,2627.6,3.80566]
[1729557638806,19.81349417,2628.0,2627.9,0.05310746]
[1729557639030,19.81349417,2628.0,2627.7,3.8056]
[1729557639330,19.81349417,2628.0,2627.9,0.05297932]
[1729557639505,19.81349417,2628.0,2627.7,4.566725]
[1729557639713,19.81349417,2628.0,2627.9,0.05297932]
[1729557639906,19.81349417,2628.0,2627.7,4.566725]
[1729557640106,19.81349417,2628.0,2627.9,0.05297932]
[1729557640425,19.81349417,2628.0,2627.9,0.05297131]
[1729557641091,3.80546,2627.8,2627.2,3.80626]
[1729557641291,19.76052286,2627.9,2627.3,3.80606]
[1729557641496,19.76052286,2627.9,2627.5,3.80586]
[1729557642088,19.76052286,2627.9,2627.5,7.61172]
[1729557642295,19.76052286,2627.9,2627.7,3.80559]
[1729557643201,19.76052286,2627.9,2627.5,3.80577]
[1729557643620,19.76052286,2627.9,2627.8,3.80546]
[1729557643833,19.76052286,2627.9,2627.6,7.61134]
[1729557644024,19.76052286,2627.9,2627.6,4.722454]
[1729557644326,19.76052286,2627.8,2627.7,3.8056]
[1729557644528,19.76052286,2627.8,2627.6,8.528114]
[1729557644731,19.76052286,2627.8,2627.4,1.5568]
[1729557644732,19.76052286,2627.8,2627.4,5.3628]
[1729557645035,19.76052286,2627.8,2627.4,7.61195]
[1729557645233,19.76052286,2627.8,2627.4,7.6119]
[1729557645909,19.76052286,2627.8,2627.6,3.80572]
[1729557646232,19.76052286,2627.8,2627.4,3.80593]
[1729557646604,19.76052286,2627.8,2627.7,3.8056]
[1729557648929,19.76052286,2627.8,2627.7,3.85113007]
[1729557649105,19.76052286,2628.0,2627.9,3.80531]
[1729557649629,19.76052286,2628.0,2627.9,3.85084007]
[1729557652004,19.76052286,2628.0,2627.9,0.04553007]
[1729557652231,19.76052286,2628.0,2627.7,3.80552]
[1729557652539,19.76052286,2628.0,2627.9,3.80531]
[1729557653034,19.76052286,2628.0,2627.9,3.85071193]
[1729557653333,19.76052286,2628.0,2627.9,0.04540193]
[1729557653537,19.76052286,2628.0,2627.8,3.80544]
[1729557653839,19.76052286,2628.0,2627.9,0.04540193]
[1729557654228,19.76052286,2628.0,2627.7,3.80549]
[1729557654543,19.76052286,2628.0,2627.8,3.85086193]
[1729557654918,19.76052286,2628.0,2627.9,3.80531]
[1729557655448,19.76052286,2628.0,2627.9,3.85047966]
[1729557656006,19.76052286,2628.6,2628.5,5.88835]
[1729557656235,15.95622286,2629.8,2629.5,3.80287]
[1729557656555,15.95622286,2629.7,2629.6,3.84790756]
[1729557656907,15.95622286,2630.3,2630.0,3.80217]
[1729557657115,15.95622286,2630.3,2629.8,3.8025]
[1729557657317,15.95622286,2630.3,2630.1,0.04429701]
[1729557657539,15.95622286,2630.2,2629.9,1.5292]
[1729557657804,15.95622286,2630.2,2630.1,8.14523819]
[1729557658070,15.95622286,2631.1,2630.4,3.80158]
[1729557658228,15.95622286,2631.0,2630.4,3.80158]
[1729557658630,19.75709286,2631.0,2630.4,3.80158]
[1729557659365,19.75709286,2631.0,2630.4,4.561934]
[1729557659730,15.95622286,2631.0,2630.4,4.561934]
[1729557659930,19.75706286,2631.0,2630.4,4.561934]
[1729557660870,3.80116,2630.8,2630.0,4.33542]
[1729557661026,19.75710286,2631.0,2630.0,4.33542]
[1729557661027,19.75710286,2631.0,2630.2,3.80196]
[1729557661230,19.75710286,2631.0,2630.4,3.80167]
[1729557661472,19.75710286,2631.0,2630.2,3.80199]
[1729557661473,15.95622286,2631.0,2630.2,3.80199]
[1729557661771,15.95622286,2631.0,2630.7,3.80118]
[1729557661976,15.95622286,2631.0,2630.3,8.41801982]
[1729557662142,15.95622286,2630.9,2630.3,4.61621982]
[1729557662352,15.95622286,2630.9,2630.5,3.8015]
[1729557662566,15.95622286,2630.9,2630.6,3.80138]
[1729557663339,15.95622286,2630.9,2630.8,3.80112]
[1729557664670,15.95622286,2630.9,2630.6,5.35837]
[1729557664841,15.95622286,2630.9,2630.7,3.80126]
[1729557665055,15.95622286,2630.9,2630.7,4.717223]
[1729557665479,15.95622286,2630.9,2630.7,0.915963]
[1729557665945,15.95622286,2631.2,2631.1,3.80069]
[1729557666674,15.95622286,2631.2,2631.1,3.8401077]
[1729557667542,15.95622286,2631.2,2631.1,0.0394177]
[1729557667938,15.95622286,2631.2,2630.9,3.80097]
[1729557668162,15.95622286,2631.2,2631.1,0.03905021]
[1729557668363,15.95622286,2631.2,2631.1,3.80069]
[1729557668581,15.95622286,2631.2,2631.1,3.83974021]
[1729557668882,15.95622286,2631.2,2631.1,0.03905021]
[1729557669121,15.95622286,2631.2,2631.0,3.80081]
[1729557669261,15.95622286,2631.2,2631.1,3.80069]
[1729557669608,15.95622286,2631.2,2631.1,3.83974021]
[1729557670261,15.95622286,2631.2,2631.1,0.03905021]
[1729557670497,15.95622286,2631.2,2631.1,3.80069]
[1729557670714,15.95622286,2631.2,2631.1,3.83974021]
[1729557671000,15.95622286,2631.8,2631.1,4.98388223]
[1729557671201,0.1536,2631.9,2631.1,3.83974021]
[1729557671202,15.95622286,2631.7,2631.1,3.83974021]
[1729557671708,19.75608286,2631.7,2631.1,3.83974021]
[1729557672000,15.95622286,2631.7,2631.2,3.80049]
[1729557672292,15.95622286,2631.7,2631.1,3.83974021]
[1729557672293,15.95622286,2631.7,2631.3,3.83876107]
[1729557672498,15.95622286,2631.7,2631.3,0.03837107]
[1729557672702,15.95622286,2631.7,2631.3,3.80039]
[1729557672858,15.95622286,2631.7,2631.4,3.83852107]
[1729557673064,15.95622286,2631.7,2631.5,3.80001]
[1729557673475,3.95277,2632.2,2631.6,3.83833107]
[1729557674201,3.95276,2632.2,2631.6,0.03837107]
[1729557674598,3.95276,2632.2,2631.5,3.80002]
[1729557674898,3.79926,2632.1,2631.5,3.80002]
[1729557675103,19.82,2632.0,2631.6,0.07598883]
[1729557675275,19.82,2632.0,2631.7,3.79969]
[1729557675600,19.82,2632.1,2631.7,3.79969]
[1729557675807,19.82,2632.1,2631.8,0.03837107]
[1729557676015,19.82,2632.1,2631.7,3.79969]
[1729557676167,19.82,2632.1,2631.9,0.03837107]
[1729557676367,19.82,2632.1,2631.7,3.79969]
[1729557676593,19.82,2632.1,2632.0,0.03837107]
[1729557676978,19.82,2632.1,2631.7,3.79969]
[1729557677300,19.82,2632.1,2631.7,4.559668]
[1729557677801,19.82,2632.1,2631.8,0.03837107]
[1729557678307,19.82,2632.1,2631.7,4.559668]
[1729557678607,19.82,2632.1,2631.9,0.03772428]
[1729557678813,19.82,2632.1,2631.7,4.559668]
[1729557678998,19.82,2632.1,2632.0,0.03772428]
[1729557679180,19.82,2632.1,2631.7,4.559668]
[1729557679381,19.82,2632.1,2632.0,0.03772428]
[1729557679714,19.82,2632.1,2631.7,4.559668]
[1729557679863,19.82,2632.1,2632.0,0.03772428]
[1729557680067,19.82,2632.1,2631.7,4.559668]
[1729557680275,19.82,2632.1,2632.0,0.03772428]
[1729557680481,19.82,2632.1,2631.7,4.559738]
[1729557680680,19.82,2632.1,2632.0,0.03772428]
[1729557680982,19.82,2632.1,2631.7,4.559738]
[1729557681204,19.82,2632.1,2632.0,0.03772428]
[1729557681409,19.82,2632.1,2631.8,0.4559738]
[1729557681584,19.82,2632.1,2632.0,0.03772428]
[1729557681785,19.82,2632.1,2631.8,0.4559738]
[1729557682626,19.82,2632.1,2631.9,0.03772428]
[1729557683039,1.90256429,2636.0,2632.0,3.79939]
[1729557683040,19.82,2632.2,2632.0,3.79939]
[1729557683238,19.82,2632.2,2632.1,6.79924]
[1729557683545,19.82,2632.2,2632.1,6.83615783]
[1729557686030,19.82,2632.2,2632.1,6.86282688]
[1729557686291,19.82,2633.0,2632.6,3.79849]
[1729557686597,19.82,2633.2,2632.8,3.79813]
[1729557687027,19.82,2633.2,2632.9,0.03639115]
[1729557687553,19.82,2633.2,2632.5,3.0]
[1729557687726,19.82,2633.2,2633.0,0.03639115]
[1729557687965,23.61774,2633.2,2632.6,3.79851]
[1729557688137,19.82,2633.2,2633.1,0.03639115]
[1729557688340,3.79781,2633.1,2632.7,0.679851]
[1729557688654,23.77126,2633.2,2633.1,0.03639115]
[1729557688833,3.79803,2633.0,2632.3,3.0]
[1729557689040,3.79803,2633.0,2632.3,6.79895]
[1729557689378,3.79803,2633.0,2632.3,6.79894]